bitfinex/quotes_BTCUSD_20230907
["timestamp","ask_amount","ask_price","bid_price","bid_amount"]
[1694100274873,3.51763529,25839.0,25838.0,0.02999712]
[1694100275063,3.44899529,25839.0,25838.0,0.02499712]
[1694100275779,3.11054042,25839.0,25838.0,0.02499712]
[1694100276006,3.55285897,25839.0,25838.0,0.02499712]
[1694100276476,3.11054042,25839.0,25838.0,0.02499712]
[1694100276695,3.36650122,25839.0,25838.0,0.02699712]
[1694100276903,3.13454042,25839.0,25838.0,0.02699712]
[1694100277278,2.65776536,25839.0,25838.0,0.02699712]
[1694100278223,0.90676515,25839.0,25838.0,0.02699712]
[1694100278426,0.67477904,25839.0,25838.0,0.02699712]
[1694100278690,0.7393593,25839.0,25838.0,0.02699712]
[1694100278908,0.67572093,25839.0,25838.0,0.02699712]
[1694100279356,1.44974393,25839.0,25838.0,0.02699712]
[1694100279850,2.45575304,25839.0,25838.0,0.02699712]
[1694100280035,2.32789655,25839.0,25838.0,0.02699712]
[1694100284590,2.32735374,25839.0,25838.0,0.02699712]
[1694100286184,3.10137674,25839.0,25838.0,0.02699712]
[1694100287203,2.86924706,25839.0,25838.0,0.02699712]
[1694100287816,2.09522406,25839.0,25838.0,0.02699712]
[1694100288845,0.48943554,25839.0,25838.0,0.02699712]
[1694100289630,0.48943554,25839.0,25831.0,0.1]
[1694100289631,0.08,25834.0,25819.0,0.62630001]
[1694100289861,0.15542129,25833.0,25819.0,1.30730001]
[1694100290086,0.15542129,25833.0,25819.0,0.60944001]
[1694100290315,0.23648129,25833.0,25819.0,1.39310001]
[1694100290532,0.37566163,25832.0,25819.0,0.99753716]
[1694100290754,0.15542129,25831.0,25819.0,0.99753716]
[1694100290966,0.15542129,25831.0,25819.0,1.25333716]
[1694100291199,0.27542129,25831.0,25819.0,1.07933925]
[1694100291431,0.23582129,25831.0,25819.0,1.60333925]
[1694100291644,0.12,25830.0,25819.0,1.60333925]
[1694100291842,0.15542129,25829.0,25819.0,1.72083925]
[1694100292049,0.15542129,25829.0,25819.0,1.58806931]
[1694100292266,0.15542129,25829.0,25819.0,1.61206931]
[1694100292470,0.15542129,25829.0,25819.0,1.11206931]
[1694100292703,0.1857,25828.0,25819.0,1.11206931]
[1694100292930,0.15542129,25827.0,25819.0,1.11206931]
[1694100293148,0.15542129,25827.0,25819.0,1.13506931]
[1694100293361,0.15542129,25827.0,25819.0,0.12526931]
[1694100293574,0.15542129,25827.0,25819.0,0.10226931]
[1694100293575,0.35895719,25826.0,25819.0,0.10226931]
[1694100293835,0.27542129,25825.0,25819.0,0.01173716]
[1694100294062,0.49694129,25825.0,25819.0,0.03473716]
[1694100294282,0.30492,25824.0,25819.0,0.03473716]
[1694100294490,0.45914129,25824.0,25819.0,0.03473716]
[1694100294698,0.46214129,25824.0,25819.0,0.05673716]
[1694100294909,0.30696,25823.0,25819.0,0.03473716]
[1694100295115,0.3066,25823.0,25819.0,0.33473716]
[1694100295335,0.306,25823.0,25819.0,0.35673716]
[1694100295541,0.35995129,25826.0,25819.0,0.33473716]
[1694100295542,0.3732,25825.0,25819.0,0.33473716]
[1694100295761,0.54098129,25825.0,25819.0,1.10935316]
[1694100295975,0.53232513,25824.0,25819.0,1.10835316]
[1694100296184,0.69542642,25824.0,25819.0,1.10835316]
[1694100296398,0.32916,25823.0,25819.0,1.86096916]
[1694100296639,0.33116,25823.0,25819.0,1.88296916]
[1694100296849,0.32972,25823.0,25819.0,1.10835316]
[1694100297049,0.48502129,25823.0,25819.0,1.096616]
[1694100297264,0.485,25823.0,25819.0,1.096622]
[1694100297472,0.34704,25822.0,25819.0,0.322]
[1694100297691,0.34668,25822.0,25819.0,0.322]
[1694100297930,0.34788,25822.0,25819.0,0.322]
[1694100298143,0.34236,25822.0,25819.0,0.322]
[1694100298354,0.3414,25822.0,25819.0,0.322]
[1694100298577,0.32496,25821.0,25819.0,0.322]
[1694100298808,0.32436,25821.0,25819.0,0.322]
[1694100299106,0.12,25821.0,25819.0,0.321]
[1694100299340,0.31716,25820.0,25819.0,0.021]
[1694100299559,0.32676,25820.0,25819.0,0.1935]
[1694100299766,0.32772,25820.0,25819.0,0.2145]
[1694100300001,0.3282,25820.0,25819.0,0.5145]
[1694100300204,0.32868,25820.0,25819.0,0.5145]
[1694100300466,0.35124,25820.0,25819.0,0.4935]
[1694100300672,0.37968,25820.0,25819.0,0.1935]
[1694100300872,0.33968,25820.0,25819.0,0.2145]
[1694100301136,2.0764201,25820.0,25819.0,0.2345]
[1694100301368,1.7173871,25820.0,25819.0,0.2345]
[1694100301587,2.4781201,25820.0,25819.0,0.2345]
[1694100301802,2.4640801,25820.0,25819.0,0.2345]
[1694100302023,2.4610201,25820.0,25819.0,0.2345]
[1694100302232,2.4621001,25820.0,25819.0,0.4285]
[1694100302445,2.4678601,25820.0,25819.0,0.4285]
[1694100302659,2.4763201,25820.0,25819.0,0.4085]
[1694100302883,2.4820801,25820.0,25819.0,0.4085]
[1694100303102,2.4849801,25820.0,25819.0,0.4285]
[1694100303318,2.4831801,25820.0,25819.0,0.4285]
[1694100303534,2.273646,25820.0,25819.0,0.4085]
[1694100303753,2.213166,25820.0,25819.0,0.4085]
[1694100303977,0.31992,25820.0,25819.0,0.3875]
[1694100304216,0.32216,25820.0,25819.0,0.4075]
[1694100304409,0.3316,25820.0,25819.0,0.4255]
[1694100304646,0.3178,25820.0,25819.0,0.4255]
[1694100304787,0.30628,25820.0,25819.0,0.4255]
[1694100305017,0.30544,25820.0,25819.0,0.4255]
[1694100305241,0.30496,25820.0,25819.0,0.4255]
[1694100305470,0.30376,25820.0,25819.0,0.4255]
[1694100305644,0.30148,25820.0,25819.0,0.4255]
[1694100305856,0.30304,25820.0,25819.0,0.4255]
[1694100306128,0.3016,25820.0,25819.0,0.4255]
[1694100306366,0.29368,25820.0,25819.0,0.4255]
[1694100306589,0.12142,25820.0,25819.0,1.974746]
[1694100306830,0.10252,25820.0,25819.0,2.36329922]
[1694100307053,0.10252,25820.0,25819.0,2.77089922]
[1694100307054,0.10978,25820.0,25819.0,2.77089922]
[1694100307268,0.004,25820.0,25819.0,3.96552222]
[1694100307936,0.07012,25820.0,25819.0,3.96552222]
[1694100308226,0.004,25820.0,25819.0,3.96552222]
[1694100308448,0.002,25820.0,25819.0,3.94752222]
[1694100308688,0.004,25820.0,25819.0,3.96752222]
[1694100308901,0.004,25820.0,25819.0,1.11605322]
[1694100309122,0.004,25820.0,25819.0,1.89067622]
[1694100309370,0.004,25820.0,25819.0,2.64529922]
[1694100309371,0.002,25820.0,25819.0,2.64529922]
[1694100309644,0.004,25820.0,25819.0,2.66929922]
[1694100310097,0.28588,25820.0,25819.0,2.66929922]
[1694100310349,0.355,25820.0,25819.0,0.7315]
[1694100310594,0.002,25820.0,25819.0,0.4115]
[1694100310822,0.34192,25820.0,25819.0,0.4355]
[1694100311067,0.34156,25820.0,25819.0,0.4355]
[1694100311300,0.3382,25820.0,25819.0,0.4355]
[1694100311470,0.33868,25820.0,25819.0,0.4355]
[1694100311757,0.33652,25820.0,25819.0,0.4355]
[1694100311988,0.3352,25820.0,25819.0,0.4355]
[1694100312212,0.32836,25820.0,25819.0,0.4355]
[1694100312331,0.328,25820.0,25819.0,0.4355]
[1694100312542,0.3292,25820.0,25819.0,0.4355]
[1694100312759,0.32872,25820.0,25819.0,0.4355]
[1694100313177,0.3286,25820.0,25819.0,0.4355]
[1694100313384,0.32416,25820.0,25819.0,0.4355]
[1694100313594,0.29812,25820.0,25819.0,0.4355]
[1694100313842,0.29456,25820.0,25819.0,0.4115]
[1694100314296,0.29632,25820.0,25819.0,0.4355]
[1694100314465,0.29812,25820.0,25819.0,0.4355]
[1694100314735,0.29668,25820.0,25819.0,0.4355]
[1694100314945,0.30004,25820.0,25819.0,0.4355]
[1694100315166,0.29944,25820.0,25819.0,0.4355]
[1694100315385,0.29956,25820.0,25819.0,0.4355]
[1694100315609,0.29812,25820.0,25819.0,0.4355]
[1694100315874,0.29932,25820.0,25819.0,0.4355]
[1694100316092,0.29824,25820.0,25819.0,0.4355]
[1694100316313,0.29836,25820.0,25819.0,0.4355]
[1694100316529,0.29824,25820.0,25819.0,0.4355]
[1694100316759,0.29956,25820.0,25819.0,1.210123]
[1694100316973,0.29836,25820.0,25819.0,1.210123]
[1694100317160,0.2962,25820.0,25819.0,1.210123]
[1694100317422,0.29608,25820.0,25819.0,1.210123]
[1694100317849,0.29656,25820.0,25819.0,1.210123]
[1694100318059,0.2944,25820.0,25819.0,1.210123]
[1694100318267,0.29236,25820.0,25819.0,1.210123]
[1694100318486,0.28696,25820.0,25819.0,1.210123]
[1694100318702,0.28912,25820.0,25819.0,1.984746]
[1694100318916,0.28696,25820.0,25819.0,1.984746]
[1694100319141,0.28024,25820.0,25819.0,1.984746]
[1694100319369,0.28036,25820.0,25819.0,1.984746]
[1694100319617,0.28024,25820.0,25819.0,1.984746]
[1694100319861,0.28348,25820.0,25819.0,1.984746]
[1694100320074,0.27784,25820.0,25819.0,1.984746]
[1694100320298,0.10846,25820.0,25819.0,3.26792222]
[1694100320519,0.1057,25820.0,25819.0,3.26792222]
[1694100320740,0.10552,25820.0,25819.0,3.26792222]
[1694100320966,0.10594,25820.0,25819.0,3.26792222]
[1694100321192,0.10654,25820.0,25819.0,3.26792222]
[1694100321414,0.10714,25820.0,25819.0,3.26792222]
[1694100321640,0.10732,25820.0,25819.0,3.26792222]
[1694100321865,0.10816,25820.0,25819.0,3.26792222]
[1694100322094,0.1069,25820.0,25819.0,3.26792222]
[1694100322346,0.10708,25820.0,25819.0,3.26792222]
[1694100322579,0.1021,25820.0,25819.0,3.26792222]
[1694100322797,0.1027,25820.0,25819.0,3.26792222]
[1694100323020,0.004,25820.0,25819.0,3.67552222]
[1694100323242,0.09886,25820.0,25819.0,3.67552222]
[1694100323526,0.004,25820.0,25819.0,3.67552222]
[1694100323957,0.09838,25820.0,25819.0,3.67552222]
[1694100324176,0.09892,25820.0,25819.0,3.67552222]
[1694100324388,0.004,25820.0,25819.0,3.67552222]
[1694100325556,0.10954,25820.0,25819.0,2.90089922]
[1694100325775,0.26596,25820.0,25819.0,2.90089922]
[1694100326002,0.13516,25820.0,25819.0,2.90089922]
[1694100326238,0.004,25820.0,25819.0,2.90089922]
[1694100326467,0.26656,25820.0,25819.0,2.90089922]
[1694100326695,0.26452,25820.0,25819.0,2.90089922]
[1694100326925,0.004,25820.0,25819.0,2.90089922]
[1694100327403,0.004,25820.0,25819.0,2.78089922]
[1694100327655,0.13348,25820.0,25819.0,2.78089922]
[1694100327887,0.004,25820.0,25819.0,2.78089922]
[1694100328128,0.13348,25820.0,25819.0,2.78089922]
[1694100328563,0.004,25820.0,25819.0,2.78089922]
[1694100329215,0.13324,25820.0,25819.0,2.78089922]
[1694100329439,0.004,25820.0,25819.0,2.78089922]
[1694100329708,0.13348,25820.0,25819.0,2.78089922]
[1694100329897,0.13366,25820.0,25819.0,2.78089922]
[1694100330336,0.004,25820.0,25819.0,2.78089922]
[1694100331014,0.13336,25820.0,25819.0,2.78089922]
[1694100331228,0.004,25820.0,25819.0,2.78089922]
[1694100331480,0.1324,25820.0,25819.0,2.78089922]
[1694100331695,0.13234,25820.0,25819.0,2.78089922]
[1694100331919,0.004,25820.0,25819.0,2.78089922]
[1694100332140,0.004,25820.0,25819.0,1.23165322]
[1694100332352,0.43632,25820.0,25819.0,1.23165322]
[1694100332572,0.4464,25820.0,25819.0,0.82405322]
[1694100332793,0.4488,25820.0,25819.0,0.82405322]
[1694100333021,0.44808,25820.0,25819.0,0.82405322]
[1694100333230,0.4548,25820.0,25819.0,0.82405322]
[1694100333436,0.45372,25820.0,25819.0,0.82405322]
[1694100333644,0.45336,25820.0,25819.0,0.4355]
[1694100333858,0.45528,25820.0,25819.0,0.4355]
[1694100334069,0.45972,25820.0,25819.0,0.4355]
[1694100334286,0.45888,25820.0,25819.0,0.4355]
[1694100334494,0.45852,25820.0,25819.0,0.4355]
[1694100334699,0.45816,25820.0,25819.0,0.4355]
[1694100334952,0.45588,25820.0,25819.0,0.4355]
[1694100335154,0.45264,25820.0,25819.0,0.4355]
[1694100335305,0.45912,25820.0,25819.0,0.4355]
[1694100335527,0.46068,25820.0,25819.0,0.4355]
[1694100335721,0.69767136,25820.0,25819.0,0.4355]
[1694100335924,0.70259136,25820.0,25819.0,0.4355]
[1694100336155,0.70463136,25820.0,25819.0,0.4355]
[1694100336355,0.70763136,25820.0,25819.0,0.4355]
[1694100336529,0.70487136,25820.0,25819.0,0.4355]
[1694100336731,0.70187136,25820.0,25819.0,0.4355]
[1694100336933,0.70175136,25820.0,25819.0,0.4355]
[1694100337132,0.70115136,25820.0,25819.0,0.4355]
[1694100337355,0.70079136,25820.0,25819.0,0.4355]
[1694100337512,0.70019136,25820.0,25819.0,0.4355]
[1694100337711,0.68975136,25820.0,25819.0,0.4355]
[1694100337944,0.69059136,25820.0,25819.0,0.4355]
[1694100338162,0.69011136,25820.0,25819.0,0.4355]
[1694100338359,0.69971136,25820.0,25819.0,0.4355]
[1694100338592,0.70091136,25820.0,25819.0,0.4355]
[1694100338802,0.70211136,25820.0,25819.0,0.4355]
[1694100339185,0.71399136,25820.0,25819.0,0.242]
[1694100339391,0.72359136,25820.0,25819.0,0.242]
[1694100339595,1.76280436,25820.0,25819.0,0.242]
[1694100339818,1.76784436,25820.0,25819.0,0.242]
[1694100340026,1.76874436,25820.0,25819.0,0.242]
[1694100340496,1.76838436,25820.0,25819.0,0.242]
[1694100340712,2.57395736,25820.0,25819.0,0.242]
[1694100340921,2.57539736,25820.0,25819.0,0.242]
[1694100341142,2.57377736,25820.0,25819.0,0.242]
[1694100341354,2.57683736,25820.0,25819.0,0.242]
[1694100341569,2.57323736,25820.0,25819.0,0.242]
[1694100341777,2.56891736,25820.0,25819.0,0.242]
[1694100341994,2.56819736,25820.0,25819.0,0.242]
[1694100342214,2.56729736,25820.0,25819.0,0.242]
[1694100342465,2.58025736,25820.0,25819.0,0.242]
[1694100342675,2.58277736,25820.0,25819.0,0.242]
[1694100342955,3.419979,25820.0,25819.0,0.048]
[1694100343201,4.026531,25820.0,25819.0,0.048]
[1694100343471,5.04185477,25820.0,25819.0,0.048]
[1694100343707,4.05752842,25820.0,25819.0,0.024]
[1694100343944,0.62,25818.0,25817.0,0.019998]
[1694100344179,2.169306,25818.0,25817.0,0.019998]
[1694100344427,2.577906,25818.0,25817.0,0.019998]
[1694100344664,2.947426,25818.0,25817.0,0.019998]
[1694100344901,2.951926,25818.0,25817.0,0.019998]
[1694100345137,2.950666,25818.0,25817.0,0.019998]
[1694100345375,2.969944,25818.0,25817.0,0.019998]
[1694100345636,2.972464,25818.0,25817.0,0.019998]
[1694100345862,2.964364,25818.0,25817.0,0.019998]
[1694100346076,2.965804,25818.0,25817.0,0.019998]
[1694100346341,3.99260546,25818.0,25817.0,0.019998]
[1694100346583,4.02212546,25818.0,25817.0,0.019998]
[1694100346817,4.01762546,25818.0,25817.0,0.019998]
[1694100347065,4.02304546,25818.0,25817.0,0.034998]
[1694100347310,4.03240546,25818.0,25817.0,0.034998]
[1694100347567,4.17958546,25818.0,25817.0,0.034998]
[1694100347818,4.17580546,25818.0,25817.0,0.034998]
[1694100348035,4.15528546,25818.0,25817.0,0.034998]
[1694100348271,4.14124546,25818.0,25817.0,0.034998]
[1694100348491,4.14070546,25818.0,25817.0,0.034998]
[1694100348759,4.14466546,25818.0,25817.0,0.034998]
[1694100348944,4.14952546,25818.0,25817.0,0.034998]
[1694100349211,4.17004546,25818.0,25817.0,0.034998]
[1694100349458,4.18102546,25818.0,25817.0,0.034998]
[1694100349687,4.19146546,25818.0,25817.0,0.034998]
[1694100349889,4.17958546,25818.0,25817.0,0.034998]
[1694100350141,4.19272546,25818.0,25817.0,0.034998]
[1694100350386,4.19488546,25818.0,25817.0,0.034998]
[1694100350636,4.17166546,25818.0,25817.0,0.034998]
[1694100350859,4.19002546,25818.0,25817.0,0.034998]
[1694100351098,4.18570546,25818.0,25817.0,0.034998]
[1694100351298,4.18426546,25818.0,25817.0,0.034998]
[1694100351517,4.58289868,25818.0,25817.0,0.034998]
[1694100351745,4.56705868,25818.0,25817.0,0.034998]
[1694100351974,4.59459868,25818.0,25817.0,0.034998]
[1694100352201,4.59495868,25818.0,25817.0,0.034998]
[1694100352432,4.42039022,25818.0,25817.0,0.034998]
[1694100352672,5.2886715,25818.0,25817.0,0.034998]
[1694100352915,5.56220655,25818.0,25817.0,0.034998]
[1694100353145,5.70133539,25818.0,25817.0,0.034998]
[1694100353830,5.70033539,25818.0,25817.0,0.026998]
[1694100354080,5.53355034,25818.0,25817.0,0.028998]
[1694100354306,5.53355034,25818.0,25817.0,0.021998]
[1694100354307,5.62527766,25818.0,25817.0,0.021998]
[1694100354545,5.64427766,25818.0,25817.0,0.023998]
[1694100355302,5.62527766,25818.0,25817.0,0.021998]
[1694100355781,5.64927766,25818.0,25817.0,0.023998]
[1694100356006,5.63025679,25818.0,25817.0,0.021998]
[1694100356255,5.92155034,25818.0,25817.0,0.023998]
[1694100356494,6.10733539,25818.0,25817.0,0.023998]
[1694100356732,5.92155034,25818.0,25817.0,0.023998]
[1694100357229,6.01423312,25818.0,25817.0,0.023998]
[1694100357932,6.13423312,25818.0,25817.0,0.023998]
[1694100358182,6.2647768,25818.0,25817.0,0.023998]
[1694100358430,6.12564796,25818.0,25817.0,0.023998]
[1694100358898,1.1076,25815.0,25814.0,0.019998]
[1694100359137,5.51286822,25815.0,25814.0,0.019998]
[1694100359375,2.339263,25815.0,25814.0,0.019998]
[1694100359600,1.951423,25815.0,25814.0,0.019998]
[1694100359842,2.965866,25815.0,25814.0,0.019998]
[1694100360076,2.966946,25815.0,25814.0,0.019998]
[1694100360335,2.969106,25815.0,25814.0,0.019998]
[1694100360579,2.979366,25815.0,25814.0,0.019998]
[1694100360834,4.38560222,25815.0,25814.0,0.019998]
[1694100361091,4.58345735,25815.0,25814.0,0.019998]
[1694100361346,4.56095735,25815.0,25814.0,0.019998]
[1694100361593,4.56059735,25815.0,25814.0,0.019998]
[1694100361833,4.56149735,25815.0,25814.0,0.019998]
[1694100362067,4.54025735,25815.0,25814.0,0.019998]
[1694100362308,4.56929735,25815.0,25814.0,0.021998]
[1694100362550,4.57235735,25815.0,25814.0,0.021998]
[1694100362801,4.58531735,25815.0,25814.0,0.021998]
[1694100363035,4.57325735,25815.0,25814.0,0.021998]
[1694100363262,4.59581735,25815.0,25814.0,0.023998]
[1694100363501,4.59527735,25815.0,25814.0,0.023998]
[1694100363729,4.59563735,25815.0,25814.0,0.023998]
[1694100363956,4.59617735,25815.0,25814.0,0.023998]
[1694100364193,4.59545735,25815.0,25814.0,0.023998]
[1694100364431,4.61021735,25815.0,25814.0,0.023998]
[1694100364664,4.61057735,25815.0,25814.0,0.023998]
[1694100364898,4.60967735,25815.0,25814.0,0.023998]
[1694100365137,4.60895735,25815.0,25814.0,0.023998]
[1694100365408,4.74894222,25815.0,25814.0,0.023998]
[1694100365642,4.9913543,25815.0,25814.0,0.023998]
[1694100366321,4.74894222,25815.0,25814.0,0.023998]
[1694100366545,5.15654222,25815.0,25814.0,0.023998]
[1694100366765,4.95594771,25815.0,25814.0,0.023998]
[1694100368829,4.66560771,25815.0,25814.0,0.023998]
[1694100369044,4.67568771,25815.0,25814.0,0.023998]
[1694100369301,4.67640771,25815.0,25814.0,0.023998]
[1694100369515,4.67478771,25815.0,25814.0,0.023998]
[1694100369781,4.67010771,25815.0,25814.0,0.023998]
[1694100370003,4.66560771,25815.0,25814.0,0.023998]
[1694100370222,4.67190771,25815.0,25814.0,0.023998]
[1694100370451,4.67478771,25815.0,25814.0,0.023998]
[1694100370679,4.67352771,25815.0,25814.0,0.023998]
[1694100370914,4.62514771,25815.0,25814.0,0.023998]
[1694100371105,4.65772771,25815.0,25814.0,0.023998]
[1694100371316,4.66834771,25815.0,25814.0,0.023998]
[1694100371636,4.67140771,25815.0,25814.0,0.023998]
[1694100371885,4.93294771,25815.0,25814.0,0.023998]
[1694100372338,4.67086771,25815.0,25814.0,0.023998]
[1694100372595,4.67158771,25815.0,25814.0,0.023998]
[1694100372838,4.93294771,25815.0,25814.0,0.023998]
[1694100373974,4.65052771,25815.0,25814.0,0.023998]
[1694100374197,4.64368771,25815.0,25814.0,0.023998]
[1694100374441,4.64764771,25815.0,25814.0,0.023998]
[1694100374686,4.65250771,25815.0,25814.0,0.023998]
[1694100374921,4.93294771,25815.0,25814.0,0.023998]
[1694100376033,5.13855514,25815.0,25814.0,0.023998]
[1694100376279,5.39171393,25815.0,25814.0,0.023998]
[1694100376976,5.00210101,25815.0,25814.0,0.023998]
[1694100377449,4.74894222,25815.0,25814.0,0.023998]
[1694100377682,4.98241643,25815.0,25814.0,0.023998]
[1694100377936,4.74894222,25815.0,25814.0,0.023998]
[1694100378192,5.93152522,25815.0,25814.0,0.023998]
[1694100378407,5.73305462,25815.0,25814.0,0.023998]
[1694100378631,5.91353814,25815.0,25814.0,0.023998]
[1694100378857,5.61656123,25815.0,25814.0,0.023998]
[1694100379090,5.8155153,25815.0,25814.0,0.023998]
[1694100379330,5.89921687,25815.0,25814.0,0.023998]
[1694100379550,6.30681687,25815.0,25814.0,0.023998]
[1694100379772,6.71642979,25815.0,25814.0,0.023998]
[1694100379990,6.24311285,25815.0,25814.0,0.023998]
[1694100380208,6.10391878,25815.0,25814.0,0.023998]
[1694100380427,6.10415878,25815.0,25814.0,0.023998]
[1694100380921,6.07991878,25815.0,25814.0,0.021998]
[1694100381138,6.07991878,25815.0,25814.0,0.020998]
[1694100381386,5.69631878,25815.0,25814.0,0.022998]
[1694100381835,5.64855878,25815.0,25814.0,0.019998]
[1694100382057,5.67255878,25815.0,25814.0,0.020998]
[1694100382528,5.67243878,25815.0,25814.0,0.020998]
[1694100382756,6.0619317,25815.0,25814.0,0.020998]
[1694100382994,6.13225221,25815.0,25814.0,0.021998]
[1694100383225,6.08425221,25815.0,25814.0,0.019998]
[1694100383677,6.13225221,25815.0,25814.0,0.021998]
[1694100384110,6.31827726,25815.0,25814.0,0.021998]
[1694100384328,6.13249221,25815.0,25814.0,0.021998]
[1694100385058,6.31827726,25815.0,25814.0,0.021998]
[1694100386113,6.41476971,25815.0,25814.0,0.021998]
[1694100386897,6.64700102,25815.0,25814.0,0.021998]
[1694100387388,7.05460102,25815.0,25814.0,0.021998]
[1694100387966,6.86881597,25815.0,25814.0,0.021998]
[1694100388868,6.26393719,25815.0,25814.0,0.021998]
[1694100389523,5.48052572,25815.0,25814.0,0.021998]
[1694100389763,0.16158,25815.0,25814.0,0.916771]
[1694100389991,0.5,25818.0,25814.0,3.56247022]
[1694100390224,0.09378284,25820.0,25817.0,0.5276]
[1694100390225,0.1326222,25820.0,25817.0,0.5276]
[1694100390459,0.1326222,25820.0,25816.0,0.194]
[1694100390460,0.0009822,25820.0,25819.0,0.4076]
[1694100390696,0.0009822,25820.0,25819.0,3.80802222]
[1694100391448,0.0009822,25820.0,25819.0,3.92802222]
[1694100391703,0.12264,25824.0,25819.0,3.92802222]
[1694100391926,0.27912,25825.0,25819.0,3.419469]
[1694100392147,0.10806,25823.0,25819.0,3.419469]
[1694100392431,0.14172,25825.0,25819.0,3.419469]
[1694100392432,0.35328,25824.0,25819.0,3.031469]
[1694100392653,0.58151499,25825.0,25819.0,3.031469]
[1694100392899,0.333,25823.0,25819.0,3.031469]
[1694100393119,0.36648,25824.0,25819.0,3.031469]
[1694100393338,0.002,25820.0,25819.0,3.079469]
[1694100393549,0.002,25820.0,25819.0,3.199469]
[1694100393758,0.002,25820.0,25819.0,3.392969]
[1694100393969,0.07704,25823.0,25819.0,3.344969]
[1694100394185,0.09306,25824.0,25819.0,3.248969]
[1694100394601,0.07806,25824.0,25819.0,3.248969]
[1694100394810,0.23928924,25825.0,25819.0,3.248969]
[1694100395021,0.28382905,25824.0,25819.0,3.248969]
[1694100395234,0.28328905,25824.0,25819.0,3.248969]
[1694100395462,0.28520905,25824.0,25819.0,3.248969]
[1694100395673,0.29008905,25824.0,25819.0,3.248969]
[1694100395875,0.29056905,25824.0,25819.0,3.248969]
[1694100396117,0.002,25820.0,25819.0,3.272969]
[1694100396291,0.28376905,25824.0,25819.0,3.224969]
[1694100396518,0.28948905,25824.0,25819.0,3.248969]
[1694100396751,0.29124905,25824.0,25819.0,3.272969]
[1694100396963,0.21732905,25824.0,25819.0,3.272969]
[1694100397172,0.004,25824.0,25819.0,3.272969]
[1694100397396,0.004,25824.0,25819.0,3.66152222]
[1694100398768,0.15942129,25824.0,25819.0,3.66152222]
[1694100398977,0.38923574,25824.0,25819.0,3.78152222]
[1694100399186,0.45691574,25824.0,25819.0,3.78152222]
[1694100399388,0.45661574,25824.0,25819.0,3.78152222]
[1694100399594,0.39089341,25823.0,25819.0,3.392969]
[1694100399799,0.39089341,25823.0,25819.0,2.498346]
[1694100399800,0.46961341,25823.0,25819.0,2.498346]
[1694100400044,0.192,25823.0,25819.0,2.498346]
[1694100400263,0.004,25824.0,25819.0,2.498346]
[1694100400475,0.004,25824.0,25819.0,2.972969]
[1694100400683,0.002,25824.0,25819.0,2.948969]
[1694100401302,0.002,25824.0,25819.0,3.068969]
[1694100401913,0.19834071,25825.0,25819.0,3.044969]
[1694100402116,0.35475848,25825.0,25819.0,3.044969]
[1694100402319,0.002,25823.0,25819.0,2.875469]
[1694100402525,0.35475848,25825.0,25819.0,2.851469]
[1694100403107,0.353762,25825.0,25819.0,2.851469]
[1694100403503,0.002,25823.0,25819.0,2.875469]
[1694100404070,0.002,25824.0,25819.0,2.875469]
[1694100404536,0.002,25824.0,25819.0,2.899469]
[1694100405511,0.355762,25825.0,25819.0,2.875469]
[1694100405737,0.002,25823.0,25819.0,2.899469]
[1694100405962,0.355762,25825.0,25819.0,2.875469]
[1694100406222,0.002,25824.0,25819.0,2.899469]
[1694100406451,0.35675697,25825.0,25819.0,2.875469]
[1694100406687,0.35475697,25825.0,25819.0,2.851469]
[1694100406919,0.35675697,25825.0,25819.0,2.875469]
[1694100407167,0.002,25824.0,25819.0,2.899469]
[1694100407420,0.15742129,25824.0,25819.0,2.899469]
[1694100407645,0.002,25824.0,25819.0,2.899469]
[1694100407871,0.15742129,25824.0,25819.0,2.899469]
[1694100408332,0.00299497,25825.0,25819.0,2.875469]
[1694100408577,0.16041626,25825.0,25819.0,2.899469]
[1694100409830,0.15742129,25825.0,25819.0,2.875469]
[1694100410062,0.002,25824.0,25819.0,2.899469]
[1694100410282,0.15742129,25824.0,25819.0,2.899469]
[1694100410728,0.002,25825.0,25819.0,3.5654815]
[1694100410947,0.002,25825.0,25819.0,3.55700897]
[1694100410948,0.00498814,25825.0,25819.0,3.55700897]
[1694100411192,0.00498814,25825.0,25819.0,3.518219]
[1694100411441,0.00298814,25825.0,25819.0,3.494219]
[1694100411676,0.00098814,25825.0,25819.0,3.495219]
[1694100411902,0.15740943,25825.0,25819.0,3.495219]
[1694100412564,0.15640943,25825.0,25819.0,3.470219]
[1694100412823,0.15740943,25825.0,25819.0,3.495219]
[1694100413044,0.15740943,25825.0,25819.0,3.470219]
[1694100413259,0.15542129,25825.0,25819.0,3.470219]
[1694100413497,0.15642129,25825.0,25819.0,3.494219]
[1694100413731,0.15642129,25825.0,25819.0,3.519219]
[1694100413732,0.001,25824.0,25819.0,3.519219]
[1694100413997,0.15642129,25824.0,25819.0,3.519219]
[1694100414649,0.001,25824.0,25819.0,3.519219]
[1694100414869,0.00198669,25825.0,25819.0,3.494219]
[1694100415098,0.15740798,25825.0,25819.0,3.494219]
[1694100415340,0.15640798,25825.0,25819.0,3.470219]
[1694100415593,0.15640798,25825.0,25819.0,3.518219]
[1694100415594,0.001,25824.0,25819.0,3.518219]
[1694100415830,0.15642129,25824.0,25819.0,3.518219]
[1694100416053,0.001,25824.0,25819.0,3.518219]
[1694100416491,0.001,25825.0,25819.0,3.494219]
[1694100416717,0.15742129,25825.0,25819.0,3.518219]
[1694100417590,0.15642129,25825.0,25819.0,3.58116559]
[1694100417828,0.15641136,25825.0,25819.0,3.55716559]
[1694100418285,0.001,25824.0,25819.0,3.58116559]
[1694100418503,0.15642129,25824.0,25819.0,3.494219]
[1694100418743,0.001,25824.0,25819.0,4.418219]
[1694100418976,0.00199007,25825.0,25819.0,4.418219]
[1694100418977,0.001,25825.0,25819.0,4.394219]
[1694100419223,0.15742129,25825.0,25819.0,4.418219]
[1694100419874,0.15642129,25825.0,25819.0,4.394219]